bitfinex/quotes_SOLUSD_20250602
["timestamp","ask_amount","ask_price","bid_price","bid_amount"]
[1748871239728,60.30954282,153.98,153.94,89.37587632]
[1748871239729,60.30954282,153.98,153.94,45.43587632]
[1748871239904,60.30954282,153.95,153.94,19.43587632]
[1748871240307,60.30954282,153.95,153.94,45.43603741]
[1748871240502,6.6432,154.04,153.97,26.0]
[1748871241003,6.6432,154.04,153.97,32.4947717]
[1748871241004,60.30954282,153.98,153.97,32.4947717]
[1748871241826,6.6432,154.04,153.97,48.73170097]
[1748871242008,60.30954282,154.04,154.01,26.0]
[1748871242213,19.3438,154.09,154.01,26.0]
[1748871242214,60.30954282,154.05,154.01,69.9]
[1748871242631,60.30954282,154.04,154.01,69.9]
[1748871242951,60.30954282,154.02,154.01,26.0]
[1748871243846,60.30954282,154.02,154.01,32.49308486]
[1748871244201,60.30954282,154.02,154.01,26.0]
[1748871244407,60.30954282,154.02,153.98,69.96]
[1748871244707,43.96,154.05,153.98,69.96]
[1748871244708,60.30954282,153.99,153.98,69.96]
[1748871244908,60.30954282,153.99,153.98,32.49434991]
[1748871245131,60.30954282,154.01,153.98,48.73022469]
[1748871245332,62.60964886,154.08,153.99,43.96]
[1748871246003,62.60964886,154.08,153.98,32.49434991]
[1748871246401,60.30954282,153.99,153.98,26.0]
[1748871246605,60.30954282,153.99,153.94,43.92]
[1748871246815,60.30954282,153.96,153.94,43.92]
[1748871247030,75.50964886,154.04,153.97,26.0]
[1748871247031,60.30954282,153.99,153.97,26.0]
[1748871247336,167.54964886,154.06,154.0,26.0]
[1748871247628,60.30954282,154.03,154.0,69.92]
[1748871248125,60.30954282,154.01,154.0,69.92]
[1748871249014,60.30954282,154.01,154.0,76.41350649]
[1748871249227,60.30954282,154.01,154.0,76.37350649]
[1748871249526,60.30954282,154.01,154.0,32.49350649]
[1748871249721,60.30954282,154.01,154.0,26.0]
[1748871249906,60.30954282,154.01,153.99,50.37380783]
[1748871250106,60.30954282,154.0,153.94,16.239339]
[1748871250309,60.30954282,153.95,153.88,19.3334]
[1748871250506,60.30954282,153.93,153.92,26.0]
[1748871250730,60.30954282,153.96,153.92,69.86]
[1748871250928,6.3769,153.99,153.92,69.86]
[1748871250929,6.3769,153.99,153.92,130.16954282]
[1748871251130,60.30954282,153.96,153.93,6.49645942]
[1748871251331,60.30954282,153.97,153.94,43.86]
[1748871251515,60.30954282,153.99,153.95,86.30954282]
[1748871251708,60.30954282,153.99,153.96,43.84]
[1748871251911,60.30954282,153.98,153.96,43.84]
[1748871252729,60.30954282,153.99,153.96,43.84]
[1748871253029,60.30954282,154.0,153.96,104.14954282]
[1748871253239,60.30954282,153.99,153.97,6.4947717]
[1748871253417,60.30954282,153.99,153.98,43.8]
[1748871254017,60.30954282,154.0,153.98,69.8]
[1748871254224,60.30954282,154.02,153.98,130.10954282]
[1748871254635,60.30954282,154.01,153.98,69.8]
[1748871255034,1.5859,154.05,153.98,69.8]
[1748871255035,60.30954282,153.99,153.98,69.8]
[1748871255236,60.30954282,153.99,153.98,32.49434991]
[1748871255423,25.14146916,154.04,153.98,76.23434991]
[1748871255726,60.30954282,153.99,153.98,76.23434991]
[1748871256929,60.30954282,153.99,153.98,69.68]
[1748871257131,60.30954282,153.99,153.98,26.0]
[1748871257442,60.30954282,153.99,153.93,16.24020127]
[1748871257443,85.45332148,153.99,153.93,43.68]
[1748871257652,60.30954282,153.96,153.95,26.0]
[1748871257828,60.30954282,153.96,153.95,69.72]
[1748871258249,60.30954282,153.96,153.95,26.0]
[1748871258963,60.30954282,153.98,153.95,26.0]
[1748871259142,200.71737542,154.05,153.97,26.0]
[1748871259346,60.30954282,153.99,153.98,50.23434991]
[1748871260227,60.30954282,154.0,153.98,50.23434991]
[1748871260447,150.4859,154.05,153.98,50.23434991]
[1748871260626,60.30954282,154.01,153.98,50.23434991]
[1748871261020,150.4859,154.05,154.0,26.0]
[1748871261224,60.30954282,154.03,154.01,43.7]
[1748871262238,6.0354,154.07,154.01,43.7]
[1748871262439,60.30954282,154.04,154.02,6.49266329]
[1748871262754,6.0354,154.07,154.03,43.64]
[1748871262935,1.5749,154.09,154.03,43.64]
[1748871263833,60.30954282,154.05,154.03,43.64]
[1748871264153,60.30954282,154.04,154.02,69.6]
[1748871264335,60.30954282,154.03,154.02,76.09266329]
[1748871264735,60.30954282,154.05,154.02,76.09266329]
[1748871265232,60.30954282,154.04,154.02,76.09266329]
[1748871265758,60.30954282,154.03,154.0,38.68]
[1748871266051,60.30954282,154.01,153.97,43.58]
[1748871266253,60.30954282,153.98,153.95,6.49561545]
[1748871266450,60.30954282,153.96,153.95,6.49561545]
[1748871266629,60.30954282,153.96,153.95,76.07561545]
[1748871266825,60.30954282,153.96,153.94,19.17591172]
[1748871267025,66.80333897,154.0,153.94,19.17591172]
[1748871267026,60.30954282,153.95,153.94,62.73591172]
[1748871267333,60.30954282,153.95,153.94,88.73591172]
[1748871268345,60.30954282,153.99,153.94,165.28554808]
[1748871269135,60.30954282,153.98,153.97,26.0]
[1748871269369,60.30954282,153.98,153.97,69.5]
[1748871269568,60.30954282,153.99,153.97,69.5]
[1748871269773,60.30954282,154.0,153.97,69.5]
[1748871270064,60.30954282,154.01,153.97,129.80954282]
[1748871270269,60.30954282,154.02,153.97,129.80954282]
[1748871270449,60.30954282,154.02,153.99,22.72874861]
[1748871270651,1.5603,154.05,154.0,43.48]
[1748871270949,60.30954282,154.02,154.0,43.48]
[1748871271364,60.30954282,154.03,154.0,69.48]
[1748871271546,60.30954282,154.04,154.0,129.78954282]
[1748871271970,6.2282,154.07,154.03,26.0]
[1748871272150,60.30954282,154.06,154.03,69.42]
[1748871272346,4.67340896,154.1,154.07,26.0]
[1748871272563,64.98295178,154.13,154.08,60.30954282]
[1748871272761,3.73728122,154.12,154.09,103.72954282]
[1748871272951,60.30954282,154.13,154.09,103.72954282]
[1748871273352,6.187,154.15,154.09,43.42]
[1748871273353,60.30954282,154.12,154.09,43.42]
[1748871273559,60.30954282,154.11,154.09,43.42]
[1748871273952,60.30954282,154.12,154.09,69.42]
[1748871274445,60.30954282,154.12,154.1,6.48929266]
[1748871274643,60.30954282,154.13,154.11,43.38]
[1748871275460,6.187,154.15,154.11,43.38]
[1748871275658,60.30954282,154.13,154.11,43.38]
[1748871275865,6.187,154.15,154.11,43.38]
[1748871276166,60.30954282,154.12,154.09,69.32]
[1748871276471,60.30954282,154.1,154.02,72.98954282]
[1748871276772,60.30954282,154.06,154.05,26.0]
[1748871276962,60.30954282,154.06,154.05,69.32]
[1748871277552,60.30954282,154.07,154.05,75.81139889]
[1748871277782,60.30954282,154.09,154.05,75.81139889]
[1748871278073,167.54964886,154.14,154.06,60.30954282]
[1748871278074,60.30954282,154.11,154.06,60.30954282]
[1748871278263,60.30954282,154.1,154.07,43.3]
[1748871278961,60.30954282,154.08,154.07,43.3]
[1748871279162,60.30954282,154.08,154.06,43.28]
[1748871279363,18.64964886,154.13,154.05,32.49139889]
[1748871279364,60.30954282,154.07,154.05,32.49139889]
[1748871279569,60.30954282,154.06,154.05,75.77139889]
[1748871279882,60.30954282,154.06,154.05,75.75139889]
[1748871280382,60.30954282,154.06,154.05,32.49139889]
[1748871280547,60.30954282,154.06,154.05,75.73139889]
[1748871280947,60.30954282,154.06,154.05,69.24]
[1748871281264,60.30954282,154.06,154.05,75.71139889]
[1748871282159,60.30954282,154.07,154.05,75.71139889]
[1748871283184,60.30954282,154.1,154.06,60.30954282]
[1748871283378,37.89248357,154.1,154.07,43.16]
[1748871283877,37.89248357,154.1,154.09,26.0]
[1748871284097,37.89248357,154.1,154.09,75.6297138]
[1748871284256,37.89248357,154.11,154.09,75.6297138]
[1748871284457,37.89248357,154.12,154.09,75.6297138]
[1748871284864,37.89248357,154.11,154.09,75.6297138]
[1748871285067,17.34547752,154.15,154.09,69.14]
[1748871285068,37.89248357,154.1,154.09,69.14]
[1748871285271,37.89248357,154.11,154.09,75.62942799]
[1748871285478,37.89248357,154.1,154.09,75.62942799]
[1748871285879,37.89248357,154.11,154.09,75.62942799]
[1748871286873,37.89248357,154.1,154.09,69.14]
[1748871287182,37.89248357,154.1,154.09,75.6297138]
[1748871287784,37.89248357,154.11,154.09,75.6297138]
[1748871288677,6.187,154.15,154.09,75.6297138]
[1748871288887,37.89248357,154.11,154.09,75.6297138]
[1748871289561,6.187,154.15,154.09,75.6297138]
[1748871289767,3.73665761,154.14,154.13,26.0]
[1748871289987,3.73665761,154.14,154.13,80.89248357]
[1748871290195,37.89248357,154.17,154.13,80.89248357]
[1748871290403,3.73591471,154.16,154.13,43.0]
[1748871290612,6.5339,154.2,154.16,26.0]
[1748871290766,37.89248357,154.19,154.17,42.98]
[1748871291189,37.89248357,154.2,154.17,42.98]
[1748871291468,37.89248357,154.21,154.17,80.87248357]
[1748871291670,37.89248357,154.21,154.18,6.48592554]
[1748871291891,37.89248357,154.21,154.19,42.96]
[1748871292097,6.2929,154.24,154.19,42.96]
[1748871292273,3.73466147,154.23,154.19,42.96]
[1748871292600,37.89248357,154.2,154.15,68.96]
[1748871292902,37.89248357,154.17,154.15,68.96]
[1748871293400,37.89248357,154.16,154.13,26.0]
[1748871293604,37.89248357,154.14,154.12,12.3]
[1748871293802,37.89248357,154.13,154.12,55.24]
[1748871293971,37.89248357,154.13,154.12,81.24]
[1748871294174,37.89248357,154.13,154.12,87.72845055]
[1748871294505,37.89248357,154.14,154.12,87.72845055]
[1748871294811,37.89248357,154.13,154.12,87.72845055]
[1748871295778,3.73605735,154.16,154.12,87.72845055]
[1748871296083,37.89248357,154.13,154.12,81.24]
[1748871296470,37.89248357,154.13,154.1,26.0]
[1748871296671,37.89248357,154.12,154.1,75.34929266]
[1748871296871,25.12624886,154.16,154.1,75.34929266]
[1748871296872,37.89248357,154.13,154.1,75.34929266]
[1748871297186,37.89248357,154.11,154.1,75.34929266]
[1748871297385,37.89248357,154.11,154.07,12.3]
[1748871297588,37.89248357,154.08,154.02,16.23071768]
[1748871297779,37.89248357,154.07,154.02,66.42320125]
[1748871297978,37.89248357,154.07,154.03,42.86]
[1748871298181,37.89248357,154.07,154.04,26.0]
[1748871299309,29.80818347,154.13,154.04,26.0]
[1748871299310,37.89248357,154.06,154.05,26.0]
[1748871299701,37.89248357,154.07,154.06,6.49097754]
[1748871300017,37.89248357,154.07,154.06,49.31097754]
[1748871300403,37.89248357,154.07,154.03,6.49209966]
[1748871300594,37.89248357,154.04,153.98,6.49434991]
[1748871300803,4.67034767,154.07,154.01,26.0]
[1748871301011,3.73844906,154.06,154.02,68.94]
[1748871301180,18.64964886,154.1,154.02,68.94]
[1748871301181,37.89248357,154.05,154.02,68.94]
[1748871301385,37.89248357,154.04,154.02,68.94]
[1748871301600,37.89248357,154.03,154.02,68.94]
[1748871301801,37.89248357,154.03,154.02,42.94]
[1748871302414,18.64964886,154.06,154.0,42.92]
[1748871302587,37.89248357,154.01,153.98,6.4942323]
[1748871302785,23.32321102,154.06,153.99,42.92]
[1748871303125,37.89248357,154.02,153.99,68.92]
[1748871303609,37.89248357,154.04,154.02,26.0]
[1748871303784,37.89248357,154.05,154.03,49.43224177]
[1748871303990,37.89248357,154.06,154.03,49.43224177]
[1748871304200,37.19471102,154.11,154.03,49.43224177]
[1748871304397,37.89248357,154.06,154.03,49.43224177]
[1748871304692,37.89248357,154.08,154.05,26.0]
[1748871304925,37.89248357,154.07,154.06,42.92]
[1748871305222,37.89248357,154.08,154.06,42.92]
[1748871305435,37.89248357,154.11,154.09,26.0]
[1748871305715,4.67356216,154.15,154.1,42.9]
[1748871305716,37.89248357,154.12,154.1,42.9]
[1748871305884,37.89248357,154.12,154.11,6.48887158]
[1748871306080,3.73701033,154.12,154.11,6.48887158]
[1748871306297,7.8167,154.16,154.11,6.48887158]
[1748871306513,37.89248357,154.15,154.11,44.38135515]
[1748871306681,45.70918357,154.16,154.12,26.0]
[1748871306886,3.73629684,154.15,154.14,37.89248357]
[1748871307085,3.73629684,154.15,154.13,42.88]
[1748871307291,18.64964886,154.17,154.09,32.4894367]
[1748871307592,60.18946997,154.1,154.09,26.0]
[1748871308088,23.32002092,154.15,154.09,26.0]
[1748871308089,11.15771189,154.15,154.09,26.0]
[1748871308289,11.15771189,154.15,154.08,42.9]
[1748871308290,18.64964886,154.13,154.07,81.2]
[1748871308510,3.73707313,154.12,154.07,81.2]
[1748871308708,60.18946997,154.09,154.07,38.3]
[1748871308913,60.18946997,154.08,154.01,72.48946997]
[1748871309093,66.45096997,154.11,154.01,12.3]
[1748871309094,60.18946997,154.02,154.01,12.3]
[1748871309292,60.18946997,154.03,154.01,81.2]
[1748871309507,60.18946997,154.03,154.02,42.9]
[1748871309907,60.18946997,154.03,154.01,55.2]
[1748871310096,60.18946997,154.02,154.01,55.2]
[1748871310294,63.92876606,154.02,153.96,6.49519355]
[1748871310519,60.18946997,153.98,153.97,42.9]
[1748871310703,23.32002092,154.04,153.97,42.9]
[1748871310895,60.18946997,153.99,153.96,68.88]
[1748871311091,4.67447742,154.04,153.97,42.88]
[1748871311303,60.18946997,154.01,153.97,103.06946997]
[1748871311504,60.18946997,154.02,153.97,103.06946997]
[1748871311699,8.41274078,154.06,153.98,60.18946997]
[1748871311905,8.41274078,154.06,154.01,66.68255483]
[1748871311906,3.73888828,154.05,154.01,66.68255483]
[1748871312215,60.18946997,154.05,154.02,42.88]
[1748871312391,60.18946997,154.04,154.02,42.88]
[1748871312791,3.73826336,154.06,154.02,42.88]
[1748871313003,63.92773333,154.06,154.02,103.06946997]
[1748871313225,63.92773333,154.06,154.02,42.88]
[1748871313439,60.18946997,154.05,154.02,42.88]
[1748871313912,60.18946997,154.05,154.03,6.49224177]
[1748871314117,63.92773333,154.06,154.03,6.49224177]
[1748871314531,63.92773333,154.06,154.03,48.72284619]
[1748871314732,3.73826336,154.06,154.03,108.91231616]
[1748871315048,60.18946997,154.05,154.03,32.49224177]
[1748871315518,3.73826336,154.06,154.03,32.49224177]
[1748871315725,63.92773333,154.06,154.03,32.49224177]
[1748871316725,3.73826336,154.06,154.03,92.68171174]
[1748871316922,3.73826336,154.06,154.03,108.91231616]
[1748871317123,3.73826336,154.06,154.05,86.18946997]
[1748871317330,3.73826336,154.06,154.05,128.96946997]
[1748871317835,3.73826336,154.06,154.05,135.46086886]
[1748871320245,3.73826336,154.06,154.05,154.11051772]
[1748871321743,3.73826336,154.06,154.05,184.11051772]
[1748871322039,3.73826336,154.06,154.05,36.49139889]
[1748871322247,3.73826336,154.06,154.05,6.49139889]
[1748871322444,63.92773333,154.06,154.0,6.49350649]
[1748871322741,60.18946997,154.01,154.0,6.49350649]
[1748871322931,60.18946997,154.03,154.0,6.49350649]
[1748871323253,3.73826336,154.06,154.0,6.49350649]
[1748871323254,60.18946997,154.04,154.0,6.49350649]
[1748871323423,60.18946997,154.03,154.0,6.49350649]
[1748871323621,60.18946997,154.01,154.0,42.68]
[1748871323937,60.18946997,154.01,153.99,52.90096009]
[1748871324130,60.18946997,154.0,153.99,10.22096009]
[1748871324654,18.64964886,154.03,153.99,10.22096009]
[1748871324818,8.40877306,154.06,154.0,42.68]
[1748871324819,3.73935705,154.02,154.0,42.68]
[1748871325020,60.18946997,154.04,154.0,42.68]
[1748871325226,3.73826336,154.06,154.0,42.68]
[1748871325435,63.92791562,154.05,154.0,128.86946997]
[1748871325637,60.18946997,154.05,154.0,128.86946997]
[1748871325941,60.18946997,154.03,154.01,6.49308486]
[1748871326152,60.18946997,154.02,154.0,26.0]
[1748871326327,60.18946997,154.01,154.0,26.0]
[1748871326642,60.18946997,154.02,154.0,32.49350649]
[1748871326832,60.18946997,154.01,153.99,16.71476633]
[1748871327749,60.18946997,154.0,153.98,26.0]
[1748871327944,60.18946997,153.99,153.98,32.49434991]
[1748871328122,60.18946997,153.99,153.98,26.0]
[1748871328319,60.18946997,153.99,153.9,16.24348949]
[1748871328627,60.18946997,153.95,153.94,26.0]
[1748871329028,18.64964886,153.99,153.94,26.0]
[1748871329229,60.18946997,153.96,153.94,26.0]
[1748871329959,60.18946997,153.95,153.94,26.0]
[1748871330261,60.18946997,153.97,153.94,32.49602074]
[1748871330464,6.4799,154.0,153.94,32.49602074]
[1748871330768,60.18946997,153.98,153.94,32.49602074]
[1748871330936,1.5994,154.01,153.96,60.18946997]
[1748871331140,60.18946997,154.01,153.97,60.18946997]
[1748871331330,60.18946997,154.0,153.96,60.18946997]
[1748871331758,60.18946997,154.0,153.95,102.78946997]
[1748871331947,16.79502065,154.03,153.96,6.49519355]
[1748871332153,60.18946997,153.99,153.96,6.49519355]
[1748871332458,16.79502065,154.03,153.96,66.68466352]
[1748871332767,3.73971533,154.02,154.0,86.18946997]
[1748871332970,5.31476336,154.06,154.0,128.76946997]
[1748871333130,63.92813947,154.05,154.01,60.18946997]
[1748871333470,60.18946997,154.03,154.0,68.58]
[1748871333771,60.18946997,154.05,154.0,128.76946997]
[1748871333969,60.18946997,154.05,154.01,6.49308486]
[1748871334170,23.96441222,154.06,154.01,6.49308486]
[1748871334339,60.18946997,154.04,154.01,6.49308486]
[1748871334667,63.92773333,154.06,154.01,6.49308486]
[1748871334845,60.18946997,154.05,154.01,6.49308486]
[1748871335038,60.18946997,154.04,154.01,6.49308486]
[1748871335236,3.73826336,154.06,154.01,6.49308486]
[1748871335439,60.18946997,154.04,154.01,6.49308486]
[1748871336048,60.18946997,154.05,154.01,66.68255483]
[1748871336361,60.18946997,154.02,154.0,68.58]
[1748871336564,60.18946997,154.01,154.0,68.58]
[1748871337076,60.18946997,154.01,154.0,26.0]
[1748871337255,60.18946997,154.01,153.96,12.12]
[1748871337463,60.18946997,153.98,153.97,42.56]
[1748871337662,60.18946997,153.99,153.97,42.56]
[1748871337864,60.18946997,153.99,153.96,12.12]
[1748871338061,60.18946997,153.99,153.96,54.68]
[1748871338374,42.56,154.05,153.97,6.4947717]
[1748871338680,60.18946997,154.03,153.99,86.18946997]
[1748871338886,63.91462304,154.05,154.0,60.18946997]
[1748871339053,60.18946997,154.04,154.01,42.6]
[1748871339258,60.18946997,154.03,154.01,42.6]
[1748871339650,3.72619419,154.05,154.02,60.18946997]
[1748871339955,60.18946997,154.05,154.01,102.78946997]
[1748871340157,60.18946997,154.05,154.01,42.6]
[1748871340345,60.18946997,154.05,154.02,6.49266329]
[1748871341449,3.73826336,154.06,154.04,60.18946997]
[1748871341649,3.73826336,154.06,154.05,42.56]
[1748871342385,3.73826336,154.06,154.05,49.05139889]
[1748871342681,3.73826336,154.06,154.05,109.24086886]
[1748871343281,3.73826336,154.06,154.05,49.05139889]
[1748871344601,63.92773333,154.06,154.03,6.49224177]
[1748871344775,60.18946997,154.04,154.03,49.05224177]
[1748871345271,3.73826336,154.06,154.03,49.05224177]
[1748871345682,3.73826336,154.06,154.03,109.24171174]
[1748871346182,63.92773333,154.06,154.03,49.05224177]
[1748871347167,60.18946997,154.05,154.03,49.05224177]
[1748871347375,63.92773333,154.06,154.03,49.05224177]
[1748871347570,3.73826336,154.06,154.03,49.05224177]
[1748871348092,3.73826336,154.06,154.05,86.18946997]
[1748871348273,3.73826336,154.06,154.05,128.76946997]
[1748871349169,3.73826336,154.06,154.05,135.26086886]
[1748871349797,3.73826336,154.06,154.05,75.07139889]
[1748871350406,3.73826336,154.06,154.05,135.26086886]
[1748871350772,3.73826336,154.06,154.05,75.07139889]
[1748871351399,3.73826336,154.06,154.05,135.26086886]
[1748871352411,3.73826336,154.06,154.05,75.07139889]
[1748871352591,3.73826336,154.06,154.05,135.26086886]
[1748871352908,3.73826336,154.06,154.05,75.07139889]
[1748871353204,3.73826336,154.06,154.05,135.26086886]
[1748871354376,3.73826336,154.06,154.05,92.68086886]
[1748871354619,3.73826336,154.06,154.05,32.49139889]
[1748871355120,3.73826336,154.06,154.05,75.03139889]
[1748871355318,3.73826336,154.06,154.05,135.22086886]
[1748871355486,3.73826336,154.06,154.05,75.03139889]
[1748871356990,63.92773333,154.06,154.05,74.99139889]
[1748871357607,63.92773333,154.06,154.05,32.49139889]
[1748871357810,3.73826336,154.06,154.05,32.49139889]
[1748871358525,63.92773333,154.06,154.02,12.12]
[1748871358687,63.92773333,154.06,154.02,121.26204688]
[1748871358688,3.73826336,154.06,154.02,121.26204688]
[1748871358885,63.92773333,154.06,154.02,121.26204688]
[1748871359086,60.18946997,154.05,154.03,48.97191059]
[1748871359712,3.73826336,154.06,154.03,109.16138056]
[1748871360013,3.73826336,154.06,154.03,125.39198498]
[1748871360430,3.73826336,154.06,154.05,60.18946997]
[1748871360587,3.73826336,154.06,154.05,102.64946997]
[1748871361188,3.73826336,154.06,154.05,86.82945233]
[1748871361418,3.73826336,154.06,154.05,105.47910119]
[1748871361709,1.6075,154.19,154.08,26.0]
[1748871361913,37.87805344,154.18,154.12,26.0]
[1748871362089,37.87805344,154.18,154.13,42.46]
[1748871362796,39.48555344,154.19,154.13,42.46]
[1748871363109,9.0047027,154.21,154.19,6.48550489]
[1748871363366,9.0047027,154.21,154.19,135.03866003]
[1748871363515,9.0047027,154.21,154.19,74.92550489]
[1748871364702,69.11785784,154.21,154.19,74.92550489]
[1748871364919,9.0047027,154.21,154.19,135.03866003]
[1748871365119,9.0047027,154.21,154.2,66.59823944]
[1748871365705,9.0047027,154.21,154.2,6.4850843]
[1748871365907,9.0047027,154.21,154.2,32.4850843]
[1748871366114,9.0047027,154.21,154.2,92.59823944]
[1748871366315,9.0047027,154.21,154.2,32.4850843]
[1748871367020,69.11785784,154.21,154.2,26.0]
[1748871367232,9.0047027,154.21,154.2,26.0]
[1748871367539,69.11785784,154.21,154.2,32.4850843]
[1748871367726,69.11785784,154.21,154.17,49.02634624]
[1748871367923,60.11315514,154.19,154.16,18.46663316]
[1748871368149,60.11315514,154.17,154.16,54.52]
[1748871368357,60.11315514,154.17,154.12,6.48845055]
[1748871368623,60.11315514,154.13,154.12,42.54]
[1748871368824,20.20594886,154.19,154.11,6.48872554]
[1748871369043,1.5563,154.19,154.14,26.0]
[1748871369344,60.11315514,154.17,154.14,42.54]
[1748871370114,1.5563,154.19,154.14,42.54]
[1748871370319,60.11315514,154.15,154.14,42.54]
[1748871370816,26.69151463,154.19,154.13,68.6]
[1748871371020,60.11315514,154.14,154.13,68.6]
[1748871371330,60.11315514,154.14,154.07,16.22562193]
[1748871371520,60.11315514,154.12,154.11,26.0]
[1748871372044,18.64964886,154.18,154.11,26.0]
[1748871372349,18.64964886,154.18,154.11,128.73315514]
[1748871372350,60.11315514,154.15,154.11,128.73315514]
[1748871372544,1.5563,154.19,154.12,60.11315514]
[1748871372746,60.11315514,154.16,154.12,60.11315514]
[1748871372947,1.5563,154.19,154.12,60.11315514]
[1748871373132,1.5563,154.19,154.13,66.60118472]
[1748871373338,9.0047027,154.21,154.18,60.11315514]
[1748871373537,9.0047027,154.21,154.19,102.73315514]
[1748871373742,9.0047027,154.21,154.19,42.62]
[1748871374554,9.0047027,154.21,154.19,102.73315514]
[1748871375166,9.0047027,154.21,154.2,92.59823944]
[1748871375371,9.0047027,154.21,154.2,32.4850843]
[1748871376542,9.0047027,154.21,154.2,66.59823944]
[1748871376748,9.0047027,154.21,154.2,18.4850843]
[1748871376975,9.0047027,154.21,154.2,78.59823944]
[1748871377143,9.0047027,154.21,154.2,18.4850843]
[1748871377343,9.0047027,154.21,154.2,78.59823944]
[1748871377879,9.0047027,154.21,154.2,18.4850843]
[1748871378270,9.0047027,154.21,154.2,6.4850843]
[1748871378448,69.11785784,154.21,154.16,6.48676699]
[1748871378643,69.11785784,154.21,154.17,68.72]
[1748871378644,60.11315514,154.18,154.17,68.72]
[1748871378861,60.11315514,154.18,154.16,6.48676699]
[1748871379055,60.11315514,154.17,154.16,49.18676699]
[1748871379270,60.11315514,154.17,154.16,75.18676699]
[1748871379475,60.11315514,154.18,154.16,75.18676699]
[1748871379644,60.11315514,154.17,154.16,75.18676699]
[1748871380060,60.11315514,154.18,154.16,75.18676699]
[1748871380582,9.0047027,154.21,154.16,75.18676699]
[1748871380752,60.11315514,154.18,154.16,75.18676699]
[1748871380952,69.11785784,154.21,154.19,26.0]
[1748871381256,9.0047027,154.21,154.2,135.27823944]
[1748871383049,9.0047027,154.21,154.2,153.9278883]
[1748871385773,7.0047027,154.21,154.2,153.9278883]
[1748871386355,7.0047027,154.21,154.2,183.9278883]
[1748871386559,7.0047027,154.21,154.2,184.4278883]
[1748871386866,7.0047027,154.21,154.2,81.63473316]
[1748871387068,7.0047027,154.21,154.2,184.4478883]
[1748871387666,7.0047027,154.21,154.2,124.33473316]
[1748871387974,7.0047027,154.21,154.2,184.4478883]
[1748871388361,7.0047027,154.21,154.2,36.9850843]
[1748871388563,67.11785784,154.21,154.2,48.9650843]
[1748871388749,7.0047027,154.21,154.2,61.6850843]
[1748871389077,7.0047027,154.21,154.2,121.79823944]
[1748871389980,7.0047027,154.21,154.2,18.9650843]
[1748871390273,7.0047027,154.21,154.2,61.7050843]
[1748871390484,7.0047027,154.21,154.2,121.81823944]
[1748871390695,7.0047027,154.21,154.2,61.7050843]
[1748871390903,7.0047027,154.21,154.2,121.81823944]
[1748871391179,7.0047027,154.21,154.2,121.31823944]
[1748871391569,7.0047027,154.21,154.2,139.9678883]
[1748871391772,7.0047027,154.21,154.2,78.57823944]
[1748871391980,7.0047027,154.21,154.2,121.37823944]
[1748871393773,7.0047027,154.21,154.2,288.94104344]
[1748871394975,7.0047027,154.21,154.2,78.57823944]
[1748871395369,7.0047027,154.21,154.2,121.37823944]
[1748871395568,1.5988,154.3,154.23,26.0]
[1748871395875,1.5988,154.3,154.29,60.11315514]
[1748871396270,1.5988,154.3,154.28,102.91315514]
[1748871397077,1.5988,154.3,154.29,0.5]
[1748871397490,1.5988,154.3,154.29,60.11315514]
[1748871397796,1.5988,154.3,154.28,102.91315514]
[1748871398467,1.5988,154.3,154.25,26.0]
[1748871398671,1.5988,154.3,154.26,102.89315514]
[1748871398866,1.5988,154.3,154.28,60.11315514]
[1748871399085,1.5988,154.3,154.29,60.11315514]
[1748871399409,1.5988,154.3,154.28,60.11315514]
[1748871399898,1.5988,154.3,154.29,66.59445658]
[1748871400100,6.2097,154.32,154.29,66.59445658]
[1748871400474,18.64964886,154.29,154.26,11.98]
[1748871400675,60.11315514,154.3,154.26,54.74]
[1748871400990,12.68979731,154.32,154.29,60.11315514]
[1748871400991,6.2097,154.32,154.29,60.11315514]
[1748871401192,6.2097,154.32,154.3,102.87315514]
[1748871401495,6.2097,154.32,154.3,80.54817869]
[1748871401980,6.2097,154.32,154.3,87.02893339]
[1748871402687,18.64964886,154.31,154.28,42.72]
[1748871402998,18.64964886,154.31,154.21,6.5487]
[1748871402999,37.78817869,154.29,154.24,37.78817869]
[1748871403301,37.78817869,154.28,154.25,26.0]
[1748871403494,37.78817869,154.28,154.25,68.74]
[1748871403703,18.64964886,154.28,154.25,106.52817869]
[1748871404099,6.2097,154.32,154.27,37.78817869]
[1748871404281,37.78817869,154.31,154.27,37.78817869]